[Event "Polugaevsky Memorial 2019"]
[Site "Samara"]
[Date "2019.07.14"]
[Round "5.3"]
[White "Shaposhnikov, Evgeny"]
[Black "Gaifullin, Artur"]
[Result "1-0"]
[ECO "B10"]
[WhiteElo "2575"]
[BlackElo "2453"]
[Annotator "ChessBase"]
[PlyCount "65"]
[EventDate "2019.07.10"]
[EventType "swiss"]
[EventCountry "RUS"]
[SourceTitle "playchess.com"]
[Source "ChessBase"]
[SourceQuality "1"]
[TimeControl "5400+30"]

1. e4 {[%emt 0:02:02]} c6 {[%emt 0:00:00]} 2. c4 {[%emt 0:00:28]} d5 {[%emt 0:00:00]} 3. exd5 {[%emt 0:00:06]} cxd5 {[%emt 0:00:00]} 4. cxd5 {[%emt 0:00:12]} Nf6 {[%emt 0:00:07]} 5. Nc3 {[%emt 0:00:14]} Nxd5 {[%emt 0:03:30]} 6. Nf3 {[%emt 0:00:12]} Nxc3 {[%emt 0:08:18]} 7. bxc3 {[%emt 0:01:19]} g6 {[%emt 0:02:16]} 8. d4 {[%emt 0:00:09]} Bg7 {[%emt 0:00:07]} 9. Bd3 {[%emt 0:00:11]} O-O {[%emt 0:00:16]} 10. O-O {[%emt 0:00:10]} Nc6 {[%emt 0:00:27]} 11. Re1 {[%emt 0:00:19]} Qa5 {[%emt 0:07:18]} 12. Bd2 {[%emt 0:07:57]} e5 {[%emt 0:02:53]} 13. Be4 {[%emt 0:03:06]} Qc7 {[%emt 0:31:38]} 14. Bxc6 {[%emt 0:02:38]} bxc6 {[%emt 0:01:12]} 15. Nxe5 {[%emt 0:00:23]} c5 {[%emt 0:00:10]} 16. Bf4 {[%emt 0:00:56]} Qa5 {[%emt 0:05:50]} 17. Qf3 {[%emt 0:01:01]} Be6 {[%emt 0:07:01]} 18. Nc6 {[%emt 0:03:38]} Qa4 {[%emt 0:00:56]} 19. Bd6 {[%emt 0:01:37]} Rfe8 {[%emt 0:04:37]} 20. Bxc5 {[%emt 0:00:29]} Bc4 {[%emt 0:02:32]} 21. h3 {[%emt 0:04:07]} f5 {[%emt 0:03:33]} 22. Re7 {[%emt 0:06:26]} Bf6 {[%emt 0:04:37]} 23. Rae1 {[%emt 0:04:34]} Rec8 {[%emt 0:06:11]} 24. R7e6 {[%emt 0:11:01]} Bxe6 {[%emt 0:00:23]} 25. Rxe6 {[%emt 0:00:22]} Bg5 {[%emt 0:00:19]} 26. Qd5 {[%emt 0:07:28]} Kg7 {[%emt 0:00:05]} 27. Qe5+ {[%emt 0:08:39]} Kh6 {[%emt 0:00:11]} 28. f4 {[%emt 0:01:55]} Bh4 {[%emt 0:02:20]} 29. Ne7 {[%emt 0:01:09]} Bxe7 {[%emt 0:01:59]} 30. Rxe7 {[%emt 0:00:11]} Rg8 {[%emt 0:01:24]} 31. Qf6 {[%emt 0:01:13]} Qd1+ {[%emt 0:00:05]} 32. Kh2 {[%emt 0:00:08]} Qh5 {[%emt 0:00:04]} 33. Qf7 {[%emt 0:00:23]} 1-0

[Event "Polugaevsky Memorial 2019"]
[Site "Samara"]
[Date "2019.07.14"]
[Round "5.4"]
[White "Goganov, Aleksey"]
[Black "Novikov, Konstantin"]
[Result "1-0"]
[ECO "A58"]
[WhiteElo "2561"]
[BlackElo "2287"]
[Annotator "ChessBase"]
[PlyCount "52"]
[EventDate "2019.07.10"]
[EventType "swiss"]
[EventCountry "RUS"]
[SourceTitle "playchess.com"]
[Source "ChessBase"]
[SourceQuality "1"]
[TimeControl "5400+30"]

1. d4 {[%emt 0:00:00]} Nf6 {[%emt 0:00:00]} 2. c4 {[%emt 0:00:00]} c5 {[%emt 0:00:00]} 3. d5 {[%emt 0:00:00]} b5 {[%emt 0:00:08]} 4. cxb5 {[%emt 0:00:00]} a6 {[%emt 0:00:03]} 5. bxa6 {[%emt 0:00:00]} g6 {[%emt 0:00:05]} 6. Nc3 {[%emt 0:00:00]} Bg7 {[%emt 0:00:09]} 7. e4 {[%emt 0:01:20]} O-O {[%emt 0:00:07]} 8. Nf3 {[%emt 0:00:09]} Qa5 {[%emt 0:00:19]} 9. Nd2 {[%emt 0:06:02]} Bxa6 {[%emt 0:02:30]} 10. Be2 {[%emt 0:00:34]} e6 {[%emt 0:02:25]} 11. O-O {[%emt 0:01:00]} exd5 {[%emt 0:02:00]} 12. e5 {[%emt 0:05:19]} Nh5 {[%emt 0:11:33]} 13. Bxh5 {[%emt 0:04:03]} Bxf1 {[%emt 0:00:17]} 14. Nxf1 {[%emt 0:00:29]} d4 {[%emt 0:08:39]} 15. Nd5 {[%emt 0:00:42]} Nc6 {[%emt 0:02:09]} 16. Nf6+ {[%emt 0:11:54]} Kh8 {[%emt 0:05:33]} 17. Bf3 {[%emt 0:00:43]} Nxe5 {[%emt 0:09:05]} 18. Bxa8 {[%emt 0:00:16]} Rxa8 {[%emt 0:04:15]} 19. Ng4 {[%emt 0:05:22]} Nxg4 {[%emt 0:02:41]} 20. Qxg4 {[%emt 0:00:04]} Qe1 {[%emt 0:00:23]} 21. Qxd7 {[%emt 0:00:50]} c4 {[%emt 0:01:56]} 22. Qc6 {[%emt 0:00:49]} Rf8 {[%emt 0:08:12]} 23. Qxc4 {[%emt 0:00:29]} h5 {[%emt 0:01:21]} 24. a4 {[%emt 0:00:06]} d3 {[%emt 0:03:27]} 25. Qxd3 {[%emt 0:00:07]} Rc8 {[%emt 0:00:35]} 26. Qd2 {[%emt 0:00:07]} Qe4 {[%emt 0:00:12]} 1-0

[Event "Polugaevsky Memorial 2019"]
[Site "Samara"]
[Date "2019.07.14"]
[Round "5.5"]
[White "Zhigalko, Andrey"]
[Black "Mamatov, Melis"]
[Result "1/2-1/2"]
[ECO "C87"]
[WhiteElo "2549"]
[BlackElo "2269"]
[Annotator "ChessBase"]
[PlyCount "80"]
[EventDate "2019.07.10"]
[EventType "swiss"]
[EventCountry "RUS"]
[SourceTitle "playchess.com"]
[Source "ChessBase"]
[SourceQuality "1"]
[TimeControl "5400+30"]

1. e4 {[%emt 0:00:00]} e5 {[%emt 0:00:00]} 2. Nf3 {[%emt 0:00:00]} Nc6 {[%emt 0:00:06]} 3. Bb5 {[%emt 0:01:27]} a6 {[%emt 0:01:51]} 4. Ba4 {[%emt 0:00:06]} Nf6 {[%emt 0:00:24]} 5. O-O {[%emt 0:00:15]} Be7 {[%emt 0:02:00]} 6. Re1 {[%emt 0:00:15]} d6 {[%emt 0:00:40]} 7. c3 {[%emt 0:00:59]} O-O {[%emt 0:00:51]} 8. d4 {[%emt 0:06:00]} b5 {[%emt 0:00:33]} 9. Bc2 {[%emt 0:00:24]} Bg4 {[%emt 0:07:16]} 10. d5 {[%emt 0:02:17]} Nb8 {[%emt 0:00:40]} 11. h3 {[%emt 0:04:34]} Bd7 {[%emt 0:07:39]} 12. a4 {[%emt 0:15:45]} bxa4 {[%emt 0:06:15]} 13. Bxa4 {[%emt 0:03:10]} c6 {[%emt 0:00:09]} 14. Nxe5 {[%emt 0:03:46]} dxe5 {[%emt 0:02:04]} 15. d6 {[%emt 0:00:05]} Be6 {[%emt 0:03:37]} 16. dxe7 {[%emt 0:00:16]} Qxe7 {[%emt 0:00:02]} 17. Qe2 {[%emt 0:22:48]} Qc7 {[%emt 0:05:43]} 18. Bc2 {[%emt 0:06:20]} a5 {[%emt 0:03:36]} 19. Be3 {[%emt 0:03:36]} Nbd7 {[%emt 0:02:50]} 20. Nd2 {[%emt 0:00:24]} Rfb8 {[%emt 0:09:56]} 21. b3 {[%emt 0:02:05]} Ne8 {[%emt 0:07:23]} 22. Ra4 {[%emt 0:10:33]} Nd6 {[%emt 0:03:34]} 23. Rea1 {[%emt 0:01:07]} c5 {[%emt 0:10:11]} 24. f4 {[%emt 0:07:33]} f6 {[%emt 0:08:42]} 25. fxe5 {[%emt 0:00:52]} Nxe5 {[%emt 0:00:50]} 26. Qf2 {[%emt 0:00:27]} Nb5 {[%emt 0:01:12]} 27. c4 {[%emt 0:04:09]} Nd4 {[%emt 0:00:22]} 28. Bxd4 {[%emt 0:01:37]} cxd4 {[%emt 0:00:01]} 29. Qxd4 {[%emt 0:00:07]} Rd8 {[%emt 0:00:09]} 30. Qc3 {[%emt 0:01:04]} Bxh3 {[%emt 0:05:14]} 31. Nf1 {[%emt 0:00:08]} Rd3 {[%emt 0:08:57]} 32. Bxd3 {[%emt 0:00:49]} Qc5+ {[%emt 0:00:08]} 33. Kh2 {[%emt 0:02:06]} Qf2 {[%emt 0:00:00]} 34. Kxh3 {[%emt 0:00:18]} g5 {[%emt 0:00:01]} 35. Ng3 {[%emt 0:01:02]} Qf4 {[%emt 0:03:59]} 36. Kh2 {[%emt 0:00:43]} Ng4+ {[%emt 0:00:29]} 37. Kh3 {[%emt 0:00:35]} Nf2+ {[%emt 0:00:09]} 38. Kh2 {[%emt 0:00:04]} Ng4+ {[%emt 0:00:16]} 39. Kh3 {[%emt 0:00:09]} Nf2+ {[%emt 0:00:01]} 40. Kh2 {[%emt 0:00:00]} Ng4+ {[%emt 0:00:00]} 1/2-1/2

[Event "Polugaevsky Memorial 2019"]
[Site "Samara"]
[Date "2019.07.14"]
[Round "5.6"]
[White "Ovetchkin, Roman"]
[Black "Yuferev, Oleg"]
[Result "1-0"]
[ECO "B14"]
[WhiteElo "2538"]
[BlackElo "2195"]
[Annotator "ChessBase"]
[PlyCount "87"]
[EventDate "2019.07.10"]
[EventType "swiss"]
[EventCountry "RUS"]
[SourceTitle "playchess.com"]
[Source "ChessBase"]
[SourceQuality "1"]
[TimeControl "5400+30"]

1. e4 {[%emt 0:00:00]} c6 {[%emt 0:00:00]} 2. d4 {[%emt 0:01:45]} d5 {[%emt 0:00:07]} 3. exd5 {[%emt 0:00:26]} cxd5 {[%emt 0:00:05]} 4. c4 {[%emt 0:00:04]} Nf6 {[%emt 0:00:09]} 5. Nc3 {[%emt 0:00:07]} e6 {[%emt 0:01:21]} 6. Nf3 {[%emt 0:00:24]} Be7 {[%emt 0:01:59]} 7. cxd5 {[%emt 0:00:58]} Nxd5 {[%emt 0:00:47]} 8. Bd3 {[%emt 0:00:41]} Nc6 {[%emt 0:01:50]} 9. O-O {[%emt 0:02:23]} O-O {[%emt 0:00:54]} 10. Re1 {[%emt 0:01:39]} Ncb4 {[%emt 0:12:35]} 11. Bb1 {[%emt 0:03:33]} Bd7 {[%emt 0:06:25]} 12. Ne5 {[%emt 0:07:51]} Nf6 {[%emt 0:14:49]} 13. Bg5 {[%emt 0:10:51]} Rc8 {[%emt 0:08:59]} 14. Re3 {[%emt 0:03:58]} Nbd5 {[%emt 0:10:34]} 15. Nxd5 {[%emt 0:03:24]} exd5 {[%emt 0:01:40]} 16. Nxd7 {[%emt 0:01:00]} Qxd7 {[%emt 0:00:37]} 17. Bxf6 {[%emt 0:00:13]} Bxf6 {[%emt 0:00:06]} 18. Bxh7+ {[%emt 0:00:09]} Kxh7 {[%emt 0:00:33]} 19. Qh5+ {[%emt 0:00:08]} Kg8 {[%emt 0:00:10]} 20. Rh3 {[%emt 0:00:06]} Qxh3 {[%emt 0:00:29]} 21. Qxh3 {[%emt 0:00:09]} Bxd4 {[%emt 0:00:59]} 22. Qb3 {[%emt 0:01:14]} Bb6 {[%emt 0:04:22]} 23. Re1 {[%emt 0:02:23]} Rfe8 {[%emt 0:04:29]} 24. Rxe8+ {[%emt 0:01:20]} Rxe8 {[%emt 0:00:05]} 25. Kf1 {[%emt 0:00:07]} Rd8 {[%emt 0:00:21]} 26. h4 {[%emt 0:00:12]} d4 {[%emt 0:00:24]} 27. Qd3 {[%emt 0:00:12]} g6 {[%emt 0:01:41]} 28. g4 {[%emt 0:00:20]} Rd6 {[%emt 0:04:53]} 29. Ke2 {[%emt 0:09:35]} Bd8 {[%emt 0:00:49]} 30. g5 {[%emt 0:00:16]} Be7 {[%emt 0:01:21]} 31. f4 {[%emt 0:01:36]} Re6+ {[%emt 0:00:59]} 32. Kd1 {[%emt 0:00:12]} Bc5 {[%emt 0:00:19]} 33. f5 {[%emt 0:00:53]} gxf5 {[%emt 0:00:45]} 34. Qxf5 {[%emt 0:00:06]} Bb4 {[%emt 0:07:30]} 35. a3 {[%emt 0:03:17]} Re1+ {[%emt 0:02:23]} 36. Kc2 {[%emt 0:00:17]} Bf8 {[%emt 0:00:06]} 37. Qg4 {[%emt 0:02:00]} Bg7 {[%emt 0:00:30]} 38. Qc8+ {[%emt 0:01:22]} Kh7 {[%emt 0:00:08]} 39. Qxb7 {[%emt 0:00:08]} Re2+ {[%emt 0:00:19]} 40. Kd3 {[%emt 0:00:00]} Re3+ {[%emt 0:00:00]} 41. Kd2 {[%emt 0:00:00]} Rh3 {[%emt 0:00:00]} 42. Qxf7 {[%emt 0:00:00]} Rxh4 {[%emt 0:00:00]} 43. Qf5+ {[%emt 0:00:00]} Kg8 {[%emt 0:00:00]} 44. g6 {[%emt 0:00:00]} 1-0

[Event "Polugaevsky Memorial 2019"]
[Site "Samara"]
[Date "2019.07.14"]
[Round "5.7"]
[White "Perov, German"]
[Black "Gabrielian, Artur"]
[Result "0-1"]
[ECO "B21"]
[WhiteElo "2194"]
[BlackElo "2458"]
[Annotator "ChessBase"]
[PlyCount "70"]
[EventDate "2019.07.10"]
[EventType "swiss"]
[EventCountry "RUS"]
[SourceTitle "playchess.com"]
[Source "ChessBase"]
[SourceQuality "1"]
[TimeControl "5400+30"]

1. e4 {[%emt 0:00:00]} c5 {[%emt 0:00:25]} 2. d4 {[%emt 0:00:00]} cxd4 {[%emt 0:00:03]} 3. c3 {[%emt 0:00:00]} Nf6 {[%emt 0:00:33]} 4. e5 {[%emt 0:00:00]} Nd5 {[%emt 0:00:03]} 5. Nf3 {[%emt 0:00:00]} d6 {[%emt 0:00:11]} 6. exd6 {[%emt 0:00:03]} e6 {[%emt 0:00:07]} 7. Nxd4 {[%emt 0:00:12]} Bxd6 {[%emt 0:00:07]} 8. g3 {[%emt 0:00:05]} O-O {[%emt 0:00:14]} 9. Bg2 {[%emt 0:00:05]} Nc6 {[%emt 0:00:04]} 10. Nxc6 {[%emt 0:00:15]} bxc6 {[%emt 0:00:08]} 11. O-O {[%emt 0:00:05]} Ba6 {[%emt 0:05:37]} 12. Re1 {[%emt 0:00:07]} Qb6 {[%emt 0:03:21]} 13. Nd2 {[%emt 0:04:38]} Rad8 {[%emt 0:01:06]} 14. Qc2 {[%emt 0:01:51]} Rfe8 {[%emt 0:03:14]} 15. a3 {[%emt 0:00:13]} Bf8 {[%emt 0:09:53]} 16. c4 {[%emt 0:05:40]} Ne7 {[%emt 0:01:00]} 17. Nf3 {[%emt 0:03:56]} Nf5 {[%emt 0:05:59]} 18. b4 {[%emt 0:22:18]} c5 {[%emt 0:00:39]} 19. b5 {[%emt 0:05:26]} Bb7 {[%emt 0:00:45]} 20. Qc3 {[%emt 0:01:38]} Be7 {[%emt 0:09:14]} 21. Bf4 {[%emt 0:00:29]} Bf6 {[%emt 0:03:36]} 22. Be5 {[%emt 0:02:56]} Bxe5 {[%emt 0:04:41]} 23. Nxe5 {[%emt 0:00:59]} Bxg2 {[%emt 0:00:13]} 24. Kxg2 {[%emt 0:00:07]} Nd4 {[%emt 0:00:36]} 25. a4 {[%emt 0:01:11]} Qb7+ {[%emt 0:03:40]} 26. f3 {[%emt 0:00:42]} f6 {[%emt 0:03:24]} 27. Ng4 {[%emt 0:00:11]} e5 {[%emt 0:00:35]} 28. Nf2 {[%emt 0:01:58]} f5 {[%emt 0:00:40]} 29. Re3 {[%emt 0:03:40]} f4 {[%emt 0:09:17]} 30. Re4 {[%emt 0:02:15]} fxg3 {[%emt 0:01:08]} 31. Nd3 {[%emt 0:07:07]} Rf8 {[%emt 0:02:01]} 32. Nxc5 {[%emt 0:03:53]} Qe7 {[%emt 0:03:27]} 33. Nd3 {[%emt 0:01:00]} Rxf3 {[%emt 0:01:53]} 34. Rae1 {[%emt 0:01:59]} gxh2 {[%emt 0:05:54]} 35. Rxe5 {[%emt 0:04:53]} h1=Q+ {[%emt 0:01:30] Rf5} 0-1

[Event "Polugaevsky Memorial 2019"]
[Site "Samara"]
[Date "2019.07.14"]
[Round "5.9"]
[White "Gusarov, Aleksey"]
[Black "Shapiro, David"]
[Result "1/2-1/2"]
[ECO "B06"]
[WhiteElo "2258"]
[BlackElo "2410"]
[Annotator "NA"]
[PlyCount "80"]
[EventDate "2019.07.10"]
[EventType "swiss"]
[EventCountry "RUS"]
[SourceTitle "playchess.com"]
[Source "ChessBase"]
[SourceQuality "1"]
[TimeControl "5400+30"]

1. e4 {[%emt 0:00:00]} g6 {[%emt 0:00:00]} 2. d4 {[%emt 0:00:37]} Bg7 {[%emt 0:00:00]} 3. c3 {[%emt 0:01:32]} d5 {[%emt 0:00:27]} 4. exd5 {[%emt 0:00:31]} Qxd5 {[%emt 0:00:02]} 5. Be2 {[%emt 0:04:22]} Bf5 {[%emt 0:07:49]} 6. Nd2 {[%emt 0:06:02]} e5 {[%emt 0:09:32]} 7. Bf3 {[%emt 0:11:38]} Qb5 $16 {[%emt 0:11:35]} (7... e4 $14 8. Qe2 Nf6 9. Bxe4 Nxe4) 8. Qb3 {[%emt 0:09:41]} Qxb3 {[%emt 0:03:44]} 9. axb3 {[%emt 0:00:18]} Nc6 {[%emt 0:00:25]} 10. Bxc6+ {[%emt 0:03:14]} bxc6 {[%emt 0:00:01]} 11. dxe5 {[%emt 0:00:29]} Bxe5 {[%emt 0:02:47]} 12. Ngf3 {[%emt 0:00:38]} Bf6 {[%emt 0:20:32]} 13. O-O {[%emt 0:02:53]} Ne7 {[%emt 0:00:12]} 14. Re1 {[%emt 0:05:02]} O-O {[%emt 0:06:02]} 15. Ne4 {[%emt 0:00:39]} Bg7 {[%emt 0:04:50]} 16. Ng3 {[%emt 0:02:08]} Bf6 {[%emt 0:00:16]} 17. Nxf5 {[%emt 0:01:31]} Nxf5 {[%emt 0:00:00]} 18. Bf4 {[%emt 0:00:47]} Rfb8 {[%emt 0:05:35]} 19. b4 {[%emt 0:03:26]} Rb7 {[%emt 0:01:26]} 20. Ra6 {[%emt 0:02:32]} Ne7 {[%emt 0:02:25]} 21. Be3 {[%emt 0:16:35]} Nd5 {[%emt 0:06:11]} 22. Bc5 {[%emt 0:02:48]} Nb6 {[%emt 0:00:51]} 23. Re2 {[%emt 0:01:13]} Kg7 {[%emt 0:01:54]} 24. g3 {[%emt 0:00:15]} Nd7 {[%emt 0:04:37]} 25. Rxc6 {[%emt 0:03:01]} a5 {[%emt 0:00:17]} 26. bxa5 {[%emt 0:01:40]} Rxa5 {[%emt 0:00:04]} 27. Bd4 {[%emt 0:00:46]} Bxd4 {[%emt 0:02:59]} 28. cxd4 {[%emt 0:00:33]} Kf8 {[%emt 0:02:19]} 29. Rec2 {[%emt 0:02:56]} Rab5 {[%emt 0:00:43]} 30. Rxc7 {[%emt 0:04:43]} Rxb2 {[%emt 0:00:04]} 31. Rc8+ {[%emt 0:01:07]} Ke7 {[%emt 0:00:43]} 32. Rxb2 {[%emt 0:00:17]} Rxb2 {[%emt 0:00:01]} 33. Rc7 {[%emt 0:00:11]} Kd6 {[%emt 0:00:45]} 34. Ra7 {[%emt 0:00:09]} h6 {[%emt 0:01:17]} 35. h4 {[%emt 0:00:59]} Rb6 {[%emt 0:03:37]} 36. Nd2 {[%emt 0:01:13]} Rc6 {[%emt 0:01:48]} 37. Kg2 {[%emt 0:02:01]} Rc2 {[%emt 0:01:49]} 38. Nf3 {[%emt 0:05:59]} Ke6 {[%emt 0:00:47]} 39. d5+ {[%emt 0:03:40]} Kd6 {[%emt 0:00:01]} 40. Nd4 {[%emt 0:00:00]} Rc5 {[%emt 0:00:00]} 1/2-1/2

[Event "Polugaevsky Memorial 2019"]
[Site "Samara"]
[Date "2019.07.14"]
[Round "5.10"]
[White "Purygin, Andrei"]
[Black "Kavyev, Ruslan"]
[Result "1/2-1/2"]
[ECO "B23"]
[WhiteElo "2395"]
[BlackElo "2167"]
[Annotator "NA"]
[PlyCount "69"]
[EventDate "2019.07.10"]
[EventType "swiss"]
[EventCountry "RUS"]
[SourceTitle "playchess.com"]
[Source "ChessBase"]
[SourceQuality "1"]
[TimeControl "5400+30"]

1. e4 {[%emt 0:06:01]} c5 {[%emt 0:00:00]} 2. Nc3 {[%emt 0:00:04]} d6 {[%emt 0:00:00]} 3. d4 cxd4 {[%emt 0:02:22]} 4. Qxd4 {[%emt 0:00:49]} Nc6 {[%emt 0:00:10]} 5. Qd2 Nf6 {[%emt 0:08:14]} 6. b3 {[%emt 0:00:16]} e6 {[%emt 0:02:07]} 7. Bb2 {[%emt 0:00:05]} Be7 {[%emt 0:00:05]} 8. O-O-O {[%emt 0:00:14]} O-O {[%emt 0:00:24]} 9. f4 {[%emt 0:00:10]} a6 {[%emt 0:00:59]} 10. Nf3 {[%emt 0:00:43]} b5 {[%emt 0:05:20]} 11. Bd3 {[%emt 0:01:44]} Bb7 {[%emt 0:09:13]} 12. g4 {[%emt 0:02:58]} Nb4 {[%emt 0:04:51]} 13. g5 {[%emt 0:02:06]} Nxd3+ {[%emt 0:00:06]} 14. cxd3 {[%emt 0:00:16]} Nd7 {[%emt 0:01:06]} 15. h4 {[%emt 0:00:37]} a5 {[%emt 0:01:13]} 16. g6 {[%emt 0:20:39]} fxg6 {[%emt 0:03:39]} 17. Nd4 {[%emt 0:02:00]} Nc5 {[%emt 0:00:56]} 18. Ndxb5 {[%emt 0:04:16]} Qd7 {[%emt 0:01:36]} 19. Qe3 {[%emt 0:12:12]} Rfc8 {[%emt 0:10:13]} 20. Kb1 {[%emt 0:02:18]} Ba6 {[%emt 0:03:13]} 21. d4 {[%emt 0:01:18]} Bxb5 {[%emt 0:13:33]} 22. dxc5 {[%emt 0:00:50]} Rxc5 {[%emt 0:00:51]} 23. Ba3 {[%emt 0:15:29]} Rcc8 {[%emt 0:10:56]} 24. e5 {[%emt 0:00:02]} Bc6 {[%emt 0:01:09]} 25. exd6 {[%emt 0:02:50]} Bxh1 {[%emt 0:03:46]} 26. dxe7 {[%emt 0:00:24]} Bd5 {[%emt 0:01:26]} 27. Qe5 {[%emt 0:09:06]} Rxc3 {[%emt 0:02:53]} 28. Qxc3 {[%emt 0:02:18]} a4 {[%emt 0:00:04]} 29. Rc1 {[%emt 0:04:32]} axb3 {[%emt 0:00:27]} 30. axb3 {[%emt 0:00:02]} Kf7 {[%emt 0:01:12]} 31. Qb4 {[%emt 0:01:53]} Qa7 {[%emt 0:01:14]} 32. Qa4 {[%emt 0:04:29]} Qb7 {[%emt 0:00:56]} 33. Qb4 {[%emt 0:00:07]} Qa7 {[%emt 0:02:21]} 34. Qa4 {[%emt 0:00:01]} Qb7 {[%emt 0:00:07]} 35. Qb4 {[%emt 0:00:01]} 1/2-1/2

[Event "Polugaevsky Memorial 2019"]
[Site "Samara"]
[Date "2019.07.15"]
[Round "6.1"]
[White "Aukhatov, Roman"]
[Black "Utegaliyev, Azamat"]
[Result "1/2-1/2"]
[ECO "A05"]
[WhiteElo "2119"]
[BlackElo "2510"]
[Annotator "ChessBase"]
[PlyCount "81"]
[EventDate "2019.07.10"]
[EventType "swiss"]
[EventCountry "RUS"]
[SourceTitle "playchess.com"]
[Source "ChessBase"]
[SourceQuality "1"]
[TimeControl "5400+30"]

1. Nf3 {[%emt 0:00:00]} Nf6 {[%emt 0:00:05]} 2. c4 {[%emt 0:00:00]} b6 {[%emt 0:02:43]} 3. g3 {[%emt 0:00:00]} Bb7 {[%emt 0:00:26]} 4. Bg2 {[%emt 0:00:00]} c5 {[%emt 0:06:01]} 5. O-O {[%emt 0:00:02]} g6 {[%emt 0:00:34]} 6. d4 {[%emt 0:02:11]} cxd4 {[%emt 0:00:13]} 7. Qxd4 {[%emt 0:00:08]} Bg7 {[%emt 0:00:13]} 8. Nc3 {[%emt 0:00:08]} d6 {[%emt 0:00:25]} 9. Rd1 {[%emt 0:01:36]} Nbd7 {[%emt 0:01:14]} 10. b3 {[%emt 0:18:30]} O-O {[%emt 0:00:21]} 11. Bb2 {[%emt 0:00:06]} Ne4 {[%emt 0:01:37]} 12. Qe3 {[%emt 0:00:50]} Nxc3 {[%emt 0:00:17]} 13. Bxc3 {[%emt 0:00:06]} Bxc3 {[%emt 0:00:02]} 14. Qxc3 {[%emt 0:00:08]} Rc8 {[%emt 0:00:08]} 15. Qd2 {[%emt 0:03:25]} Rc5 {[%emt 0:03:12]} 16. Nd4 {[%emt 0:03:58]} Bxg2 {[%emt 0:00:43]} 17. Kxg2 {[%emt 0:00:06]} Nf6 {[%emt 0:08:04]} 18. f3 {[%emt 0:14:13]} a6 {[%emt 0:00:45]} 19. Rac1 {[%emt 0:03:29]} Qa8 {[%emt 0:01:47]} 20. b4 {[%emt 0:11:46]} Rc7 {[%emt 0:03:40]} 21. b5 {[%emt 0:01:47]} Nd7 {[%emt 0:00:39]} 22. Nc6 {[%emt 0:00:42]} Ne5 {[%emt 0:00:04]} 23. Nxe5 {[%emt 0:00:51]} dxe5 {[%emt 0:00:07]} 24. Qe3 {[%emt 0:04:09]} Rc5 {[%emt 0:03:54]} 25. bxa6 {[%emt 0:01:16]} Qxa6 {[%emt 0:03:04]} 26. Rd5 {[%emt 0:01:05]} Rxc4 {[%emt 0:06:46]} 27. Rxc4 {[%emt 0:00:30]} Qxc4 {[%emt 0:00:14]} 28. Rxe5 {[%emt 0:00:07]} e6 {[%emt 0:00:15]} 29. Qxb6 {[%emt 0:02:39]} Qxa2 {[%emt 0:00:42]} 30. Qa5 {[%emt 0:00:10]} Qc2 {[%emt 0:00:48]} 31. Qc5 {[%emt 0:00:36]} Qd1 {[%emt 0:00:14]} 32. Qg1 {[%emt 0:00:51]} Qd7 {[%emt 0:01:23]} 33. Qe3 {[%emt 0:00:36]} Ra8 {[%emt 0:01:19]} 34. Rc5 {[%emt 0:00:48]} h5 {[%emt 0:00:23]} 35. h4 {[%emt 0:01:34]} Qd6 {[%emt 0:01:13]} 36. Qc3 {[%emt 0:00:38]} Rd8 {[%emt 0:00:17]} 37. Rc8 {[%emt 0:01:30]} Rxc8 {[%emt 0:00:27]} 38. Qxc8+ {[%emt 0:00:09]} Kg7 {[%emt 0:00:03]} 39. Qc3+ {[%emt 0:00:17]} Kg8 {[%emt 0:00:05]} 40. Qc4 {[%emt 0:00:00]} Qe5 {[%emt 0:00:00]} 41. Kf2 {[%emt 0:00:00]} 1/2-1/2